[Event "Satka Autumn 2018"]
[Site "Satka"]
[Date "2018.09.16"]
[Round "6"]
[White "Matsenko, Elena"]
[Black "Lapteva, Yulia"]
[Result "1-0"]
[ECO "C42"]
[WhiteElo "1854"]
[BlackElo "1074"]
[Annotator "NA RC"]
[PlyCount "85"]
[EventDate "2018.09.11"]
[EventType "swiss"]
[EventCountry "RUS"]
[SourceTitle "playchess.com"]
[Source "ChessBase"]
[SourceQuality "1"]
[TimeControl "40/5400+30:1800+30"]

1. e4 {[%emt 0:00:00]} e5 {[%emt 0:00:00]} 2. Nf3 {[%emt 0:00:00]} Nf6 {[%emt 0:00:00]} 3. Nxe5 {[%emt 0:00:00]} d6 {[%emt 0:00:00]} 4. Nf3 {[%emt 0:00:00]} Nxe4 {[%emt 0:00:00]} 5. Nc3 {[%emt 0:00:01]} Nxc3 {[%emt 0:00:00]} 6. dxc3 {[%emt 0:00:06]} Be7 {[%emt 0:00:04]} 7. Bf4 {[%emt 0:00:11] C42: Russische Verteidigung (Petrow)} (7. Be3 Nc6 8. Bc4 O-O 9. Qd2 Bf5 10. O-O-O Qd7 11. Kb1 Rfe8 12. h4 Bf8 13. h5 h6 14. Be2 Bg4 15. Nh2 Bxe2 16. Qxe2 {½-½ (41) Carlsen,M (2842)-Caruana,F (2822) Saint Louis 2018}) 7... Be6 {[%emt 0:01:43] LiveBook: 9 Partien} 8. Nd4 {[%emt 0:00:40]} Qd7 {[%emt 0:05:51]} 9. Bb5 $146 {[%emt 0:02:19]} ({Vorgänger:} 9. Qd2 Nc6 10. Bb5 a6 11. Be2 Bf6 12. Nxe6 Qxe6 13. O-O O-O 14. Rfe1 Qd7 {½-½ (54) Odor,I (2073)-Bodo,B (2113) Hungary 2012}) 9... c6 {[%emt 0:00:14]} 10. Nxe6 {[%emt 0:00:49]} Qxe6+ {[%emt 0:01:20]} 11. Be2 {[%emt 0:00:05]} d5 {[%emt 0:06:29]} 12. Qd2 {[%emt 0:00:57]} Nd7 {[%emt 0:04:13]} 13. O-O-O {[%emt 0:01:42]} Nf6 {[%emt 0:01:56]} 14. Kb1 {[%emt 0:04:22]} a5 {[%emt 0:18:45]} 15. f3 {[%emt 0:02:15]} b5 {[%emt 0:03:01]} 16. Rhe1 {[%emt 0:01:20]} O-O {[%emt 0:17:05]} 17. Bd3 {[%emt 0:01:58]} Qd7 {[%emt 0:00:13]} 18. g4 {[%emt 0:01:19]} b4 {[%emt 0:03:59]} 19. c4 {[%emt 0:00:23]} Qb7 {[%emt 0:05:18]} 20. g5 {[%emt 0:02:06]} Ne8 {[%emt 0:04:21]} (20... Nh5 $142) 21. cxd5 {[%emt 0:00:40]} c5 $2 {[%emt 0:02:45]} (21... cxd5 $16 22. Re5 Kh8) 22. d6 {[%emt 0:00:47]} Bxd6 {[%emt 0:01:55]} 23. Be4 {[%emt 0:00:08]} Bxf4 {[%emt 0:00:34]} 24. Qxf4 {[%emt 0:00:05]} Qb8 {[%emt 0:00:56]} 25. Qh4 {[%emt 0:00:05]} g6 {[%emt 0:00:35]} 26. Bxa8 {[%emt 0:00:05]} Qxa8 {[%emt 0:00:24]} 27. Qe4 {[%emt 0:00:30]} Qb8 {[%emt 0:04:03]} 28. Qe5 {[%emt 0:01:13]} Nc7 {[%emt 0:04:06]} 29. Qxc5 {[%emt 0:04:55]} a4 {[%emt 0:00:24]} 30. Qd6 {[%emt 0:01:04]} Ne6 {[%emt 0:03:49]} 31. Qxb8 {[%emt 0:00:45]} Rxb8 {[%emt 0:00:04]} 32. h4 {[%emt 0:00:11]} b3 {[%emt 0:04:15]} 33. c3 {[%emt 0:01:47]} Kf8 {[%emt 0:02:07]} 34. Re4 {[%emt 0:00:50]} Ra8 {[%emt 0:01:43]} 35. axb3 {[%emt 0:00:44]} axb3 {[%emt 0:02:09]} 36. Rb4 {[%emt 0:00:10]} Nc5 {[%emt 0:00:26]} 37. Rb5 {[%emt 0:00:40]} Rc8 {[%emt 0:01:00]} 38. Kc1 {[%emt 0:00:22]} Ke7 {[%emt 0:01:00]} 39. Rd5 {[%emt 0:00:17]} Na6 {[%emt 0:01:11]} 40. Rxb3 {[%emt 0:00:00]} Kf8 {[%emt 0:00:00]} 41. Rb6 {[%emt 0:02:40]} Nb8 {[%emt 0:01:44]} 42. Kc2 {[%emt 0:00:25]} Re8 {[%emt 0:01:17]} 43. b4 $18 {[%emt 0:00:26]} 1-0

[Event "Satka Autumn 2018"]
[Site "Satka"]
[Date "2018.09.16"]
[Round "6"]
[White "Nasybullina, Dayana"]
[Black "Smirnova, Ekaterina"]
[Result "0-1"]
[ECO "C01"]
[WhiteElo "1809"]
[BlackElo "2202"]
[Annotator "NA"]
[PlyCount "66"]
[EventDate "2018.09.11"]
[EventType "swiss"]
[EventCountry "RUS"]
[SourceTitle "playchess.com"]
[Source "ChessBase"]
[SourceQuality "1"]
[TimeControl "40/5400+30:1800+30"]

{[%evp 8,63,22,17,29,17,13,11,14,0,56,0,0,-67,-56,-59,-68,-56,-60,-53,-37,-52,32767,32767,32767,32767,32767,-108,-84,32767,32767,32767,-85,-107,-88,-87,-73,-84,32767,32767,32767,32767,-91,-186,-189,-209,-132,-176,-15,32767,32767,32767,-230,-210,-245,-386,-372,-423]} 1. e4 {[%emt 0:00:00]} e6 {[%emt 0:00:00]} 2. d4 {[%emt 0:00:00]} d5 {[%emt 0:00:00]} 3. exd5 {[%emt 0:00:31]} exd5 {[%emt 0:00:00]} 4. c4 {[%emt 0:00:28]} Nf6 {[%emt 0:00:20]} 5. Nc3 {[%emt 0:00:26]} dxc4 {[%emt 0:02:36]} 6. Bxc4 {[%emt 0:00:19]} Bd6 {[%emt 0:00:09]} 7. Nf3 {[%emt 0:00:56]} O-O {[%emt 0:00:12]} 8. O-O {[%emt 0:00:15] LiveBook: 294 Games} Bg4 {[%emt 0:00:06]} 9. Qd3 {[%emt 0:16:18] D20: Queen's Gambit Accepted: 3 e3 and 3 e4} (9. h3 $5 {[%cal Rh3g4]} Bxf3 10. Qxf3 $14 Nc6 11. Be3 Rb8 12. Rfe1 h6 13. Rad1 a6 14. a3 Re8 15. g4 Qd7 16. Bd3 Bf8 17. Bf5 Qd6 18. Bc2 {1-0 (40) Potkin,V (2580)-Michalik,P (2573) Czech Republic 2016}) 9... Nc6 {[%emt 0:04:38]} 10. Ne2 {[%emt 0:23:25]} (10. h3 $11 Bh5 11. Qd1) 10... Qd7 $146 {[%emt 0:17:15]} ({Predecessor:} 10... a6 11. a3 Qd7 12. b4 b5 13. Bb3 a5 14. bxa5 Nxa5 15. Bc2 Nc4 16. Ng3 g6 {0-1 (78) Golubeva,O (2149)-Bulmaga,I (2403) Belgrade 2013}) 11. Bd2 {[%emt 0:06:06]} a6 {[%emt 0:13:01]} 12. a4 {[%emt 0:05:56]} Bf5 {[%emt 0:10:06]} 13. Qb3 {[%emt 0:00:56]} Ne4 {[%emt 0:00:31]} 14. Bc3 {[%emt 0:01:43]} Nxc3 {[%emt 0:03:44]} 15. bxc3 {[%emt 0:02:56]} Na5 {[%emt 0:00:07]} 16. Qa2 {[%emt 0:00:08]} b5 {[%emt 0:02:33]} 17. Bd5 {[%emt 0:05:51]} c6 {[%emt 0:00:15]} 18. Bb3 {[%emt 0:00:11]} Nxb3 {[%emt 0:00:09]} 19. Qxb3 {[%emt 0:00:06]} Bg4 {[%emt 0:03:34]} 20. Ng3 {[%emt 0:02:29]} Bxf3 {[%emt 0:01:12]} 21. gxf3 {[%emt 0:00:14]} Qh3 {[%emt 0:00:13]} 22. axb5 {[%emt 0:01:58]} axb5 {[%emt 0:02:23]} 23. Rxa8 {[%emt 0:03:10]} Rxa8 {[%emt 0:00:01]} 24. Re1 {[%emt 0:00:18]} h5 {[%emt 0:01:20]} 25. Qd1 {[%emt 0:02:02]} (25. Qc2 $17) 25... h4 {[%emt 0:01:05]} 26. Nf1 {[%emt 0:00:07]} Rd8 {[%emt 0:09:59]} (26... Ra3 $19 27. Re3 Qf5) 27. Re4 {[%emt 0:03:12]} Bf8 {[%emt 0:02:05]} ({Black should play} 27... g6 $17 28. Qe2 Kg7) 28. Rg4 {[%emt 0:01:59]} Rd6 {[%emt 0:00:16]} 29. Qe2 {[%emt 0:00:45] [#]} Re6 $1 {[%emt 0:01:58]} 30. Ne3 {[%emt 0:06:30]} Bd6 {[%emt 0:01:19]} 31. Rg2 {[%emt 0:00:17]} (31. f4 $142) 31... Rg6 {[%emt 0:04:49]} 32. Ng4 $19 {[%emt 0:01:43]} f5 {[%emt 0:05:02]} 33. Qe8+ {[%emt 0:05:06]} Kh7 {[%emt 0:00:05]} 0-1

[Event "Satka Autumn 2018"]
[Site "Satka"]
[Date "2018.09.16"]
[Round "6"]
[White "Sosnina, Nadezhda"]
[Black "Filippova, Darya"]
[Result "0-1"]
[ECO "B17"]
[WhiteElo "1659"]
[BlackElo "2061"]
[Annotator "NA"]
[PlyCount "118"]
[EventDate "2018.09.11"]
[EventType "swiss"]
[EventCountry "RUS"]
[SourceTitle "playchess.com"]
[Source "ChessBase"]
[SourceQuality "1"]
[TimeControl "40/5400+30:1800+30"]

1. e4 {[%emt 0:00:00]} c6 {[%emt 0:00:00]} 2. d4 {[%emt 0:00:00]} d5 {[%emt 0:00:00]} 3. Nd2 {[%emt 0:00:00]} dxe4 {[%emt 0:00:04]} 4. Nxe4 {[%emt 0:00:00]} Nd7 {[%emt 0:00:12]} 5. Ng5 {[%emt 0:00:00]} Ngf6 {[%emt 0:01:55]} 6. Bc4 {[%emt 0:00:11]} e6 {[%emt 0:00:36]} 7. Qe2 {[%emt 0:00:06]} Nb6 {[%emt 0:03:37]} 8. Bb3 {[%emt 0:00:07]} h6 {[%emt 0:00:52] LiveBook: 370 Games B17: Caro-Kann: Modern Line (4...Nd7)} ({Much worse is} 8... Qxd4 $6 9. N1f3 $14) 9. Ne4 {[%emt 0:03:24]} (9. N5f3 $1 $11 c5 10. Bf4 Be7 11. dxc5 Bxc5 12. Rd1 Qe7 13. Ne5 O-O 14. Ngf3 Nbd5 15. Bc1 b6 16. a3 a5 17. c4 Ba6 18. O-O {½-½ (46) Andreikin,D (2723)-Bocharov,D (2574) Sochi 2017}) 9... Qxd4 {[%emt 0:09:47]} 10. Nxf6+ {[%emt 0:10:27]} Qxf6 {[%emt 0:00:09]} 11. Nf3 {[%emt 0:00:07]} Bd6 {[%emt 0:13:46]} 12. Be3 $146 {[%emt 0:00:42]} ({Predecessor:} 12. c3 O-O 13. Bd2 e5 14. O-O-O Bf5 15. h3 Bh7 16. Ne1 Rad8 17. Bc2 Bxc2 18. Nxc2 Be7 19. Ne3 Rfe8 20. g4 Nd5 21. Nxd5 Rxd5 22. c4 Rdd8 23. h4 {½-½ (23) Gruenbacher,M-Pardey,K Eppingen 2004}) 12... e5 {[%emt 0:07:30]} 13. O-O-O {[%emt 0:11:01]} Bg4 {[%emt 0:06:37]} 14. Bxb6 {[%emt 0:49:39]} (14. h3 $11 {keeps the balance.} Bh5 15. g4) 14... axb6 {[%emt 0:00:10]} 15. Bxf7+ {[%emt 0:01:46]} Qxf7 {[%emt 0:03:26]} 16. Rxd6 {[%emt 0:00:42]} O-O {[%emt 0:00:20]} 17. a3 {[%emt 0:05:16]} Qa2 {[%emt 0:03:37]} 18. Re1 {[%emt 0:01:03]} Bxf3 {[%emt 0:09:33]} 19. gxf3 {[%emt 0:00:17]} Qa1+ {[%emt 0:00:10]} 20. Kd2 {[%emt 0:00:12]} Qxb2 {[%emt 0:00:07]} 21. Qxe5 {[%emt 0:04:42]} Qxe5 {[%emt 0:00:33]} 22. Rxe5 {[%emt 0:00:02]} Rxa3 {[%emt 0:02:17]} 23. Re7 {[%emt 0:03:27]} Raxf3 {[%emt 0:00:20]} 24. Rxb7 {[%emt 0:00:16]} Rxf2+ {[%emt 0:00:30]} 25. Kc3 {[%emt 0:00:05]} R8f5 {[%emt 0:07:34]} 26. Rg6 {[%emt 0:02:24]} Rc5+ {[%emt 0:02:15]} 27. Kd3 {[%emt 0:00:24] [#]} Rf7 $1 {[%emt 0:01:16]} 28. Rxb6 {[%emt 0:00:05]} Rd7+ {[%emt 0:00:08]} 29. Ke4 {[%emt 0:00:47]} Rxc2 {[%emt 0:00:07]} 30. Rbxc6 {[%emt 0:00:07]} Rxh2 {[%emt 0:00:20]} 31. Kf3 {[%emt 0:00:27]} Kh7 {[%emt 0:00:55]} 32. Kg3 $2 {[%emt 0:01:06]} (32. Rg1) 32... Rdd2 {[%emt 0:01:11]} 33. Kf3 {[%emt 0:00:30]} (33. Rg4 $142) 33... Rhf2+ $19 {[%emt 0:01:10]} (33... Rdf2+ $142 34. Ke3 Re2+ 35. Kd4 Rhg2 36. Rxg2 Rxg2) 34. Ke3 {[%emt 0:04:51]} Rde2+ {[%emt 0:00:15]} 35. Kd3 {[%emt 0:00:47]} Rg2 {[%emt 0:00:12]} 36. Rgd6 {[%emt 0:00:23]} Rd2+ {[%emt 0:00:20]} 37. Ke3 {[%emt 0:00:03]} Rxd6 {[%emt 0:00:07]} 38. Rxd6 {[%emt 0:00:01]} Rg6 {[%emt 0:00:12]} 39. Rd5 {[%emt 0:00:16]} Rf6 {[%emt 0:00:08]} 40. Rd7 {[%emt 0:00:00]} h5 {[%emt 0:00:00]} 41. Rd5 {[%emt 0:01:12]} Kh6 {[%emt 0:00:42]} 42. Rd8 {[%emt 0:00:12]} g6 {[%emt 0:00:15]} 43. Rh8+ {[%emt 0:00:10]} Kg5 {[%emt 0:00:14]} 44. Ke4 {[%emt 0:02:00]} Kg4 {[%emt 0:00:34]} 45. Ke5 {[%emt 0:00:28]} Rf2 {[%emt 0:00:14]} 46. Rh6 {[%emt 0:00:41]} g5 {[%emt 0:00:15]} 47. Ra6 {[%emt 0:01:54]} h4 {[%emt 0:00:09]} 48. Ra4+ {[%emt 0:00:04]} Kg3 {[%emt 0:00:10]} 49. Ra3+ {[%emt 0:00:12]} Rf3 {[%emt 0:00:09]} 50. Ra1 {[%emt 0:00:19]} h3 {[%emt 0:00:10]} 51. Rg1+ {[%emt 0:00:07]} Kh4 {[%emt 0:00:08]} 52. Ke4 {[%emt 0:00:11]} Rf8 {[%emt 0:00:15]} 53. Ra1 {[%emt 0:00:24]} g4 {[%emt 0:00:09]} 54. Ra7 {[%emt 0:00:50]} h2 {[%emt 0:00:09]} 55. Ra1 {[%emt 0:00:16]} Kh3 {[%emt 0:00:11]} 56. Ra3+ {[%emt 0:00:25]} g3 {[%emt 0:00:07]} 57. Ra1 {[%emt 0:00:05]} g2 {[%emt 0:00:11]} 58. Ra7 {[%emt 0:00:11]} g1=Q {[%emt 0:00:15]} 59. Rh7+ {[%emt 0:00:09]} Kg2 {[%emt 0:00:06]} 0-1

[Event "Satka Autumn 2018"]
[Site "Satka"]
[Date "2018.09.16"]
[Round "6"]
[White "Aleshina, Arina"]
[Black "Simakova, Elena"]
[Result "0-1"]
[ECO "B36"]
[WhiteElo "1319"]
[BlackElo "1935"]
[Annotator "NA RC"]
[PlyCount "84"]
[EventDate "2018.09.11"]
[EventType "swiss"]
[EventCountry "RUS"]
[SourceTitle "playchess.com"]
[Source "ChessBase"]
[SourceQuality "1"]
[TimeControl "40/5400+30:1800+30"]

{[%evp 8,82,20,44,32,36,30,43,32767,49,49,57,41,42,39,23,11,0,18,14,21,9,18,-37,-46,-35,-53,-41,-27,-94,-101,32767,32767,-131,-127,-129,-108,32767,32767,32767,32767,32767,32767,32767,-124,-117,-111,-127,-126,-294,32767,32767,32767,32767,32767,-55,0,0,0,-111,32767,32767,32767,32767,32767,32767,32767,32767,32767,32767,32767,32767,32767,32767,32767,32767,-699]} 1. e4 {[%emt 0:00:00]} c5 {[%emt 0:00:00]} 2. Nf3 {[%emt 0:00:00]} Nc6 {[%emt 0:00:00]} 3. d4 {[%emt 0:00:00]} cxd4 {[%emt 0:00:00]} 4. Nxd4 {[%emt 0:00:00]} g6 {[%emt 0:00:00]} 5. c4 {[%emt 0:00:00]} Nf6 {[%emt 0:00:39]} 6. Nc3 {[%emt 0:00:09]} Nxd4 {[%emt 0:01:22]} 7. Qxd4 {[%emt 0:00:12]} d6 {[%emt 0:00:18]} 8. Be3 {[%emt 0:01:28]} Bg7 {[%emt 0:01:19]} 9. Be2 {[%emt 0:01:10]} O-O {[%emt 0:00:28]} 10. Qd1 {[%emt 0:01:10]} Be6 {[%emt 0:02:31]} 11. Rc1 {[%emt 0:00:28]} Qa5 {[%emt 0:01:27]} 12. Qd2 {[%emt 0:04:19]} Rfc8 {[%emt 0:04:30]} 13. b3 {[%emt 0:03:38]} a6 {[%emt 0:04:44]} 14. f3 {[%emt 0:01:55]} b5 {[%emt 0:09:38] LiveBook: 11 Games [#] B38: Sizilianisch (Maroczy-Aufbau)} 15. Nb1 $146 {[%emt 0:04:19]} ({Vorgänger:} 15. Nd5 Qxd2+ 16. Kxd2 Nxd5 17. cxd5 Bd7 18. Rxc8+ Rxc8 19. Rc1 Rxc1 20. Kxc1 Kf8 21. Kc2 Ke8 22. Bb6 e6 23. dxe6 fxe6 24. Kd3 Bc6 25. f4 e5 26. g3 d5 27. exd5 Bxd5 28. fxe5 Bxe5 {½-½ (50) Li,C (2745)-Nguyen,N (2629) Ashkhabad 2017}) 15... Qxd2+ {[%emt 0:11:21]} 16. Nxd2 {[%emt 0:00:18]} Nd7 {[%emt 0:11:26]} 17. O-O {[%emt 0:01:56]} b4 {[%emt 0:01:50]} 18. Rfd1 {[%emt 0:04:10]} (18. f4 $15 Nc5 19. Bf3) 18... a5 {[%emt 0:02:17]} 19. Nb1 {[%emt 0:09:38]} Nc5 {[%emt 0:04:59]} 20. Bd4 {[%emt 0:02:09]} Bh6 {[%emt 0:06:00]} 21. Rc2 {[%emt 0:01:29]} f5 {[%emt 0:02:44]} 22. e5 {[%emt 0:03:53]} dxe5 {[%emt 0:03:46]} 23. Bxe5 {[%emt 0:00:14]} a4 {[%emt 0:03:33]} 24. Rb2 {[%emt 0:01:01]} axb3 {[%emt 0:01:00]} 25. axb3 {[%emt 0:00:06]} Be3+ {[%emt 0:05:59]} 26. Kf1 {[%emt 0:02:23]} Rd8 {[%emt 0:00:45]} 27. Rxd8+ {[%emt 0:02:19]} Rxd8 {[%emt 0:00:04]} 28. Ke1 $2 {[%emt 0:00:46]} (28. Ra2 $17 {was called for.}) 28... Bc1 {[%emt 0:05:45]} 29. Rc2 {[%emt 0:01:30]} Nxb3 {[%emt 0:06:37]} 30. c5 {[%emt 0:01:07]} Be3 {[%emt 0:01:30]} 31. c6 {[%emt 0:00:36]} Bd4 {[%emt 0:04:44]} 32. c7 {[%emt 0:01:20]} Rc8 {[%emt 0:02:50]} 33. Ba6 {[%emt 0:01:03]} (33. Bg3 $11 Nc5 34. Rd2) 33... Bxe5 {[%emt 0:00:54]} 34. Bxc8 {[%emt 0:00:04]} Bxc8 {[%emt 0:00:01]} 35. Rc4 {[%emt 0:01:41]} Bd6 {[%emt 0:01:10]} 36. Rc2 {[%emt 0:00:56]} Kf7 {[%emt 0:00:38]} 37. Ra2 {[%emt 0:00:44]} Ke6 {[%emt 0:00:44]} 38. Rb2 {[%emt 0:00:37]} Nd4 {[%emt 0:00:21]} 39. Nd2 {[%emt 0:00:15]} Bxc7 {[%emt 0:00:31]} 40. Kf2 {[%emt 0:00:00]} Bd6 {[%emt 0:00:00]} 41. Nc4 {[%emt 0:01:07]} Bc5 $19 {[%emt 0:04:21]} 42. Kf1 {[%emt 0:00:25]} Ba6 {[%emt 0:00:10]} 0-1

[Event "Satka Autumn 2018"]
[Site "Satka"]
[Date "2018.09.16"]
[Round "6"]
[White "Skobochkina, Maria"]
[Black "Mikheeva, Galina"]
[Result "0-1"]
[ECO "C54"]
[WhiteElo "1294"]
[BlackElo "1767"]
[Annotator "NA RC"]
[PlyCount "40"]
[EventDate "2018.09.11"]
[EventType "swiss"]
[EventCountry "RUS"]
[SourceTitle "playchess.com"]
[Source "ChessBase"]
[SourceQuality "1"]
[TimeControl "40/5400+30:1800+30"]

1. e4 {[%emt 0:00:00]} e5 {[%emt 0:00:00]} 2. Nf3 {[%emt 0:00:00]} Nc6 {[%emt 0:00:00]} 3. Bc4 {[%emt 0:00:05]} Bc5 {[%emt 0:00:00]} 4. c3 {[%emt 0:01:01]} Nf6 {[%emt 0:00:00]} 5. d3 {[%emt 0:05:29]} O-O {[%emt 0:00:17]} 6. Bg5 {[%emt 0:00:37]} Be7 {[%emt 0:01:41]} 7. Nbd2 {[%emt 0:02:59]} d6 {[%emt 0:00:17]} 8. h3 {[%emt 0:00:47]} h6 {[%emt 0:04:43]} 9. Bh4 {[%emt 0:00:19]} Nh7 {[%emt 0:03:06]} 10. Bxe7 {[%emt 0:02:47]} Nxe7 {[%emt 0:01:00]} 11. Nh4 {[%emt 0:04:29]} d5 {[%emt 0:03:44]} 12. Bb3 {[%emt 0:05:38]} Ng5 {[%emt 0:05:03]} 13. Nhf3 {[%emt 0:02:58]} Nxf3+ {[%emt 0:12:21]} 14. Nxf3 {[%emt 0:00:33]} dxe4 {[%emt 0:02:01]} 15. dxe4 {[%emt 0:00:35]} Ng6 {[%emt 0:00:04]} 16. O-O {[%emt 0:01:08]} Qf6 {[%emt 0:01:16]} 17. Qc2 {[%emt 0:02:19]} Bxh3 {[%emt 0:04:00]} 18. Qd1 {[%emt 0:08:36]} Bg4 {[%emt 0:00:58]} 19. Bc4 {[%emt 0:01:16]} Rad8 {[%emt 0:01:21]} 20. Qe2 {[%emt 0:00:35]} Nh4 {[%emt 0:01:45]} 0-1

[Event "Satka Autumn 2018"]
[Site "Satka"]
[Date "2018.09.16"]
[Round "6"]
[White "Kilina, Elizaveta"]
[Black "Sosnina, Ekaterina"]
[Result "0-1"]
[ECO "B01"]
[WhiteElo "1226"]
[BlackElo "1955"]
[Annotator "NA RC"]
[PlyCount "92"]
[EventDate "2018.09.11"]
[EventType "swiss"]
[EventCountry "RUS"]
[SourceTitle "playchess.com"]
[Source "ChessBase"]
[SourceQuality "1"]
[TimeControl "40/5400+30:1800+30"]

{[%evp 8,90,41,51,69,-25,-20,-35,-5,-39,-41,-59,-54,-66,-53,-77,-45,-85,32767,32767,32767,-62,130,-71,-62,-70,32767,32767,32767,32767,32767,-56,32767,32767,32767,32767,32767,32767,32767,32767,32767,32767,32767,32767,32767,32767,32767,32767,32767,32767,32767,-253,-251,-224,-282,-222,32767,32767,32767,32767,32767,32767,32767,32767,32767,32767,32767,32767,32767,-741,-950,-864,-1332,-1084,-1521,-1618,-2204,-1678,-2069,-2033,-3072,-29982,-29985,-29988,-29989]} 1. e4 {[%emt 0:00:00]} d5 {[%emt 0:00:00]} 2. exd5 {[%emt 0:00:00]} Nf6 {[%emt 0:00:00]} 3. c4 {[%emt 0:00:11]} e6 {[%emt 0:00:00]} 4. dxe6 {[%emt 0:00:43]} Bxe6 {[%emt 0:00:00]} 5. Nf3 {[%emt 0:00:47]} Qe7 {[%emt 0:00:01] LiveBook: 35 Games [#]} 6. Nc3 {[%emt 0:04:12] B01: Scandinavian Defence} (6. Qe2 $1 $16 Nc6 7. d4 Bg4 8. Be3 O-O-O 9. d5 Ne4 10. Nc3 Nxc3 11. bxc3 Ne5 12. Qc2 Bxf3 13. gxf3 Nxf3+ 14. Ke2 Ne5 15. Bh3+ {½-½ (38) Nguyen,N (2579)-Tomczak,J (2451) Gaziantep 2008}) 6... Bxc4+ {[%emt 0:00:06]} 7. Be2 {[%emt 0:00:21]} Nc6 {[%emt 0:00:39]} 8. O-O {[%emt 0:03:50]} Bxe2 {[%emt 0:00:23]} 9. Qxe2 {[%emt 0:00:33]} Qxe2 $146 {[%emt 0:00:47]} ({Predecessor:} 9... O-O-O 10. Re1 Qd7 11. Qf1 Nb4 12. Rb1 Nd3 13. Re3 {0-1 (56) Berg,R (1583)-Gramlich,S (1968) Bad Homburg 2004}) 10. Nxe2 {[%emt 0:00:06]} O-O-O {[%emt 0:00:07]} 11. b3 {[%emt 0:02:50]} Ne4 {[%emt 0:14:58]} 12. Rd1 {[%emt 0:02:18]} Bb4 {[%emt 0:00:45]} 13. d3 {[%emt 0:05:49]} Rhe8 {[%emt 0:00:48]} 14. Be3 {[%emt 0:06:19]} Nc5 $2 {[%emt 0:02:46] [#]} (14... Nf6 $15 {stays ahead.} 15. a3 Bd6) 15. d4 $2 {[%emt 0:14:38]} (15. a3 $1 $16 {[%cal Ra3b4]} Nxb3 16. Rab1) 15... Ne4 {[%emt 0:01:16]} 16. a3 {[%emt 0:03:51]} Nc3 {[%emt 0:04:47]} 17. Nxc3 {[%emt 0:01:20]} Bxc3 {[%emt 0:00:05]} 18. Rab1 {[%emt 0:01:57]} f6 {[%emt 0:02:31]} 19. Rd3 {[%emt 0:03:35]} Ba5 {[%emt 0:00:53]} 20. b4 {[%emt 0:01:44]} Bb6 {[%emt 0:00:06]} 21. a4 {[%emt 0:01:24]} Re4 {[%emt 0:05:11]} 22. Nd2 {[%emt 0:07:37]} Re7 {[%emt 0:01:41]} 23. Nf3 {[%emt 0:02:07]} Red7 {[%emt 0:00:14]} 24. g3 {[%emt 0:06:54]} Nxd4 {[%emt 0:01:09]} 25. Nxd4 {[%emt 0:02:07]} Bxd4 {[%emt 0:00:06]} 26. Bxd4 {[%emt 0:01:41]} Rxd4 {[%emt 0:00:06]} 27. Rxd4 {[%emt 0:00:06]} Rxd4 {[%emt 0:00:06]} 28. Kg2 {[%emt 0:00:33]} a5 {[%emt 0:02:28]} 29. bxa5 {[%emt 0:06:54]} Rxa4 {[%emt 0:00:07]} 30. Rb5 {[%emt 0:00:55]} g6 {[%emt 0:01:00]} 31. Rd5 {[%emt 0:02:19]} c6 {[%emt 0:03:10]} 32. Rd6 {[%emt 0:02:30]} Rxa5 {[%emt 0:01:00]} 33. Rxf6 {[%emt 0:00:09]} Rf5 {[%emt 0:00:05]} 34. Rd6 {[%emt 0:01:59]} Kc7 {[%emt 0:00:09]} 35. Rd1 {[%emt 0:00:09]} b5 {[%emt 0:00:08]} 36. Rb1 {[%emt 0:00:47]} Kb6 {[%emt 0:00:10]} 37. Re1 {[%emt 0:02:07]} b4 {[%emt 0:00:23]} 38. Rb1 {[%emt 0:03:23]} c5 {[%emt 0:00:14]} 39. g4 {[%emt 0:00:30]} Rf7 {[%emt 0:00:14]} 40. h4 {[%emt 0:00:00]} Kb5 {[%emt 0:00:00]} 41. Kf1 {[%emt 0:03:15]} c4 {[%emt 0:00:12]} 42. Ke2 {[%emt 0:00:48]} Rd7 {[%emt 0:00:14]} 43. f4 {[%emt 0:08:54]} c3 {[%emt 0:00:14]} 44. f5 {[%emt 0:05:57]} c2 {[%emt 0:01:27]} 45. Rc1 {[%emt 0:00:11]} b3 {[%emt 0:00:05]} 46. fxg6 {[%emt 0:04:11]} hxg6 {[%emt 0:00:14]} 0-1